[Event "Kvibergspelen September 2019"]
[Site "Prioritet Serneke Arena, Krutvagen 2, Gothenburg, Sweden"]
[Date "2019.09.29"]
[Round "8.7"]
[White "Bellon Lopez, Juan"]
[Black "Jaksland, Tim"]
[Result "1-0"]
[TimeControl "15 minutes + 5 seconds per move from move one (Round 1 - 4) / 90 minutes + 30 seconds per move from move one (Round 5 - 8)"]
[WhiteTitle "GM"]
[BlackTitle "FM"]
[WhiteFideId "2200031"]
[BlackFideId "1401084"]
[WhiteElo "2334"]
[BlackElo "2214"]

1. b3 {[%clk 01:27:06]} {[%emt 00:03:53]} e5 {[%clk 01:30:06]} {[%emt
00:00:54]} 2. Bb2 {[%clk 01:27:28]} {[%emt 00:00:09]} Nc6 {[%clk 01:30:30]}
{[%emt 00:00:06]} 3. e3 {[%clk 01:27:40]} {[%emt 00:00:18]} Nf6 {[%clk
01:30:23]} {[%emt 00:00:37]} 4. c4 {[%clk 01:28:02]} {[%emt 00:00:08]} g6
{[%clk 01:27:49]} {[%emt 00:03:05]} 5. Nf3 {[%clk 01:24:49]} {[%emt 00:03:43]}
d6 {[%clk 01:21:44]} {[%emt 00:06:35]} 6. d3 {[%clk 01:21:22]} {[%emt
00:03:57]} Bg7 {[%clk 01:21:56]} {[%emt 00:00:19]} 7. g3 {[%clk 01:21:39]}
{[%emt 00:00:12]} O-O {[%clk 01:22:11]} {[%emt 00:00:16]} 8. Bg2 {[%clk
01:19:22]} {[%emt 00:02:47]} Re8 {[%clk 01:17:42]} {[%emt 00:04:59]} 9. e4
{[%clk 01:16:39]} {[%emt 00:03:12]} a5 {[%clk 01:07:07]} {[%emt 00:11:06]} 10.
O-O {[%clk 01:13:51]} {[%emt 00:03:18]} Nd7 {[%clk 01:04:17]} {[%emt 00:03:21]}
11. Nc3 {[%clk 01:07:20]} {[%emt 00:07:01]} Nc5 {[%clk 01:04:11]} {[%emt
00:00:36]} 12. Nd5 {[%clk 01:04:53]} {[%emt 00:02:56]} Bd7 {[%clk 00:51:55]}
{[%emt 00:12:47]} 13. a3 {[%clk 00:57:42]} {[%emt 00:07:40]} Ne7 {[%clk
00:42:40]} {[%emt 00:09:44]} 14. Nc3 {[%clk 00:52:43]} {[%emt 00:05:29]} Nc6
{[%clk 00:39:19]} {[%emt 00:03:52]} 15. h3 {[%clk 00:49:00]} {[%emt 00:04:13]}
Rf8 {[%clk 00:35:46]} {[%emt 00:04:04]} 16. Nd5 {[%clk 00:44:24]} {[%emt
00:05:05]} Ne7 {[%clk 00:34:24]} {[%emt 00:01:52]} 17. d4 {[%clk 00:37:51]}
{[%emt 00:07:03]} exd4 {[%clk 00:28:31]} {[%emt 00:06:23]} 18. Nxd4 {[%clk
00:34:52]} {[%emt 00:03:29]} Nxd5 {[%clk 00:22:43]} {[%emt 00:06:18]} 19. cxd5
{[%clk 00:33:25]} {[%emt 00:01:57]} Ra6 {[%clk 00:13:59]} {[%emt 00:09:14]} 20.
Qc2 {[%clk 00:31:25]} {[%emt 00:02:28]} Rb6 {[%clk 00:13:02]} {[%emt 00:01:29]}
21. Rab1 {[%clk 00:27:28]} {[%emt 00:04:26]} Re8 {[%clk 00:12:28]} {[%emt
00:01:06]} 22. Bc3 {[%clk 00:25:16]} {[%emt 00:02:42]} Qa8 {[%clk 00:10:25]}
{[%emt 00:02:32]} 23. Rfe1 {[%clk 00:24:55]} {[%emt 00:00:49]} Qc8 {[%clk
00:08:00]} {[%emt 00:02:56]} 24. Kh2 {[%clk 00:25:11]} {[%emt 00:00:13]} Qd8
{[%clk 00:07:43]} {[%emt 00:00:49]} 25. f4 {[%clk 00:17:50]} {[%emt 00:07:50]}
Ra6 {[%clk 00:06:33]} {[%emt 00:01:40]} 26. Qd2 {[%clk 00:16:11]} {[%emt
00:02:09]} b5 {[%clk 00:04:23]} {[%emt 00:02:40]} 27. Rbd1 {[%clk 00:12:17]}
{[%emt 00:04:23]} Qa8 {[%clk 00:03:35]} {[%emt 00:01:19]} 28. Ba1 {[%clk
00:10:35]} {[%emt 00:02:12]} Qb8 {[%clk 00:03:23]} {[%emt 00:00:43]} 29. Qc2
{[%clk 00:10:11]} {[%emt 00:00:53]} b4 {[%clk 00:03:08]} {[%emt 00:00:46]} 30.
a4 {[%clk 00:10:14]} {[%emt 00:00:27]} Rb6 {[%clk 00:03:23]} {[%emt 00:00:14]}
31. Qc4 {[%clk 00:07:52]} {[%emt 00:02:52]} Bc8 {[%clk 00:03:16]} {[%emt
00:00:37]} 32. e5 {[%clk 00:05:28]} {[%emt 00:02:54]} Ba6 {[%clk 00:02:12]}
{[%emt 00:01:34]} 33. Qc2 {[%clk 00:05:56]} {[%emt 00:00:01]} dxe5 {[%clk
00:01:43]} {[%emt 00:00:59]} 34. Nc6 {[%clk 00:05:46]} {[%emt 00:00:40]} Rxc6
{[%clk 00:01:18]} {[%emt 00:00:55]} 35. dxc6 {[%clk 00:06:11]} {[%emt
00:00:05]} Ne6 {[%clk 00:00:45]} {[%emt 00:01:03]} 36. Bxe5 {[%clk 00:06:15]}
{[%emt 00:00:26]} Qb6 {[%clk 00:00:41]} {[%emt 00:00:34]} 37. f5 {[%clk
00:05:34]} {[%emt 00:01:11]} Nf8 {[%clk 00:00:34]} {[%emt 00:00:37]} 38. Bxg7
{[%clk 00:04:58]} {[%emt 00:01:05]} Rxe1 {[%clk 00:01:00]} {[%emt 00:00:05]} 39.
Rxe1 {[%clk 00:05:18]} {[%emt 00:00:10]} Kxg7 {[%clk 00:01:24]} {[%emt
00:00:05]} 40. Qb2+ {[%clk 00:05:29]} {[%emt 00:00:19]} Kg8 {[%clk 00:01:46]}
{[%emt 00:00:08]} 41. Re8 {[%clk 00:05:20]} {[%emt 00:00:39]} Qc5 {[%clk
00:01:35]} {[%emt 00:00:41]} 42. Qe5 {[%clk 00:05:28]} {[%emt 00:00:22]} 1-0

[Event "Kvibergspelen September 2019"]
[Site "Prioritet Serneke Arena, Krutvagen 2, Gothenburg, Sweden"]
[Date "2019.09.29"]
[Round "8.8"]
[White "Sorensen, Hampus"]
[Black "Bruaset, Eivind"]
[Result "1-0"]
[TimeControl "15 minutes + 5 seconds per move from move one (Round 1 - 4) / 90 minutes + 30 seconds per move from move one (Round 5 - 8)"]
[WhiteTitle "FM"]
[WhiteFideId "8703884"]
[BlackFideId "1515276"]
[WhiteElo "2319"]
[BlackElo "2181"]

1. d4 {[%clk 01:30:39]} {[%emt 00:00:20]} Nf6 {[%clk 01:30:55]} {[%emt
00:00:06]} 2. c4 {[%clk 01:30:44]} {[%emt 00:00:25]} e6 {[%clk 01:31:19]}
{[%emt 00:00:06]} 3. Nf3 {[%clk 01:31:06]} {[%emt 00:00:08]} d5 {[%clk
01:31:42]} {[%emt 00:00:07]} 4. Bg5 {[%clk 01:30:40]} {[%emt 00:00:56]} Be7
{[%clk 01:31:53]} {[%emt 00:00:19]} 5. e3 {[%clk 01:30:52]} {[%emt 00:00:18]}
O-O {[%clk 01:31:34]} {[%emt 00:00:48]} 6. Qc2 {[%clk 01:30:51]} {[%emt
00:00:31]} Ne4 {[%clk 01:27:16]} {[%emt 00:04:49]} 7. Bxe7 {[%clk 01:27:50]}
{[%emt 00:03:32]} Qxe7 {[%clk 01:27:41]} {[%emt 00:00:04]} 8. Nc3 {[%clk
01:23:58]} {[%emt 00:04:22]} Nxc3 {[%clk 01:26:52]} {[%emt 00:01:19]} 9. bxc3
{[%clk 01:23:41]} {[%emt 00:00:46]} Nd7 {[%clk 01:24:18]} {[%emt 00:03:04]} 10.
Bd3 {[%clk 01:20:42]} {[%emt 00:03:29]} h6 {[%clk 01:23:04]} {[%emt 00:01:45]}
11. O-O {[%clk 01:20:15]} {[%emt 00:00:57]} c5 {[%clk 01:16:45]} {[%emt
00:06:49]} 12. Rad1 {[%clk 01:10:52]} {[%emt 00:09:53]} cxd4 {[%clk 01:12:21]}
{[%emt 00:04:55]} 13. cxd4 {[%clk 01:09:59]} {[%emt 00:01:23]} dxc4 {[%clk
01:12:32]} {[%emt 00:00:19]} 14. Qxc4 {[%clk 01:05:37]} {[%emt 00:04:53]} Nb6
{[%clk 01:12:24]} {[%emt 00:00:37]} 15. Qb3 {[%clk 01:02:47]} {[%emt 00:03:20]}
Bd7 {[%clk 01:12:12]} {[%emt 00:00:42]} 16. Bb1 {[%clk 01:02:27]} {[%emt
00:00:50]} g6 {[%clk 01:10:25]} {[%emt 00:02:16]} 17. Rc1 {[%clk 00:58:36]}
{[%emt 00:04:22]} Rfc8 {[%clk 01:06:35]} {[%emt 00:04:20]} 18. Ne5 {[%clk
00:57:01]} {[%emt 00:02:04]} Be8 {[%clk 01:06:45]} {[%emt 00:00:20]} 19. Be4
{[%clk 00:52:16]} {[%emt 00:05:16]} Rc7 {[%clk 01:05:39]} {[%emt 00:01:35]} 20.
Nd3 {[%clk 00:45:02]} {[%emt 00:07:44]} Rac8 {[%clk 01:01:12]} {[%emt
00:04:57]} 21. Rc5 {[%clk 00:39:34]} {[%emt 00:05:58]} Bc6 {[%clk 00:59:25]}
{[%emt 00:02:18]} 22. Bxc6 {[%clk 00:39:11]} {[%emt 00:00:53]} Rxc6 {[%clk
00:59:35]} {[%emt 00:00:19]} 23. h3 {[%clk 00:36:43]} {[%emt 00:02:57]} Rxc5
{[%clk 00:54:40]} {[%emt 00:05:26]} 24. Nxc5 {[%clk 00:36:41]} {[%emt
00:00:32]} e5 {[%clk 00:54:53]} {[%emt 00:00:17]} 25. Rd1 {[%clk 00:30:32]}
{[%emt 00:06:38]} Rc7 {[%clk 00:53:58]} {[%emt 00:01:26]} 26. Ne4 {[%clk
00:28:46]} {[%emt 00:02:16]} Rc4 {[%clk 00:49:36]} {[%emt 00:04:51]} 27. Qd3
{[%clk 00:23:59]} {[%emt 00:05:18]} exd4 {[%clk 00:49:12]} {[%emt 00:00:54]} 28.
exd4 {[%clk 00:24:23]} {[%emt 00:00:07]} Kg7 {[%clk 00:48:10]} {[%emt
00:01:31]} 29. Nc5 {[%clk 00:23:44]} {[%emt 00:01:09]} Rb4 {[%clk 00:46:46]}
{[%emt 00:01:53]} 30. Qf3 {[%clk 00:17:47]} {[%emt 00:06:28]} Nc8 {[%clk
00:44:18]} {[%emt 00:02:57]} 31. Qc3 {[%clk 00:16:32]} {[%emt 00:01:46]} Rb6
{[%clk 00:36:02]} {[%emt 00:08:47]} 32. d5+ {[%clk 00:15:25]} {[%emt 00:01:37]}
Kh7 {[%clk 00:36:16]} {[%emt 00:00:15]} 33. Na4 {[%clk 00:11:18]} {[%emt
00:04:38]} Qb4 {[%clk 00:35:14]} {[%emt 00:01:31]} 34. Qf3 {[%clk 00:11:32]}
{[%emt 00:00:16]} Qxa4 {[%clk 00:33:53]} {[%emt 00:01:52]} 35. Qxf7+ {[%clk
00:11:48]} {[%emt 00:00:14]} Kh8 {[%clk 00:34:21]} {[%emt 00:00:01]} 36. Re1
{[%clk 00:11:52]} {[%emt 00:00:26]} Nd6 {[%clk 00:33:14]} {[%emt 00:01:38]} 37.
Qf8+ {[%clk 00:12:04]} {[%emt 00:00:18]} Kh7 {[%clk 00:33:39]} {[%emt
00:00:05]} 38. Re7+ {[%clk 00:12:29]} {[%emt 00:00:05]} Nf7 {[%clk 00:34:05]}
{[%emt 00:00:04]} 39. Rxf7# {[%clk 00:12:53]} {[%emt 00:00:06]} 1-0

[Event "Kvibergspelen September 2019"]
[Site "Prioritet Serneke Arena, Krutvagen 2, Gothenburg, Sweden"]
[Date "2019.09.29"]
[Round "8.9"]
[White "Sjoberg, Isak"]
[Black "Troedsson, Anton"]
[Result "1/2-1/2"]
[TimeControl "15 minutes + 5 seconds per move from move one (Round 1 - 4) / 90 minutes + 30 seconds per move from move one (Round 5 - 8)"]
[WhiteFideId "1521640"]
[BlackFideId "1746006"]
[WhiteElo "2231"]
[BlackElo "2056"]

1. e4 {[%clk 01:29:42]} {[%emt 00:01:10]} c6 {[%clk 01:30:58]} {[%emt
00:00:10]} 2. d4 {[%clk 01:29:03]} {[%emt 00:01:09]} d5 {[%clk 01:31:23]}
{[%emt 00:00:05]} 3. Nc3 {[%clk 01:29:28]} {[%emt 00:00:05]} dxe4 {[%clk
01:31:34]} {[%emt 00:00:20]} 4. Nxe4 {[%clk 01:29:55]} {[%emt 00:00:02]} Nf6
{[%clk 01:31:18]} {[%emt 00:00:46]} 5. Nxf6+ {[%clk 01:29:54]} {[%emt
00:00:32]} exf6 {[%clk 01:31:39]} {[%emt 00:00:08]} 6. c3 {[%clk 01:30:16]}
{[%emt 00:00:08]} Bd6 {[%clk 01:30:21]} {[%emt 00:01:47]} 7. Bd3 {[%clk
01:30:03]} {[%emt 00:00:44]} O-O {[%clk 01:29:20]} {[%emt 00:01:30]} 8. Qc2
{[%clk 01:30:28]} {[%emt 00:00:05]} Re8+ {[%clk 01:29:19]} {[%emt 00:00:31]} 9.
Ne2 {[%clk 01:30:28]} {[%emt 00:00:31]} h5 {[%clk 01:23:03]} {[%emt 00:06:46]}
10. O-O {[%clk 01:26:51]} {[%emt 00:04:06]} Qc7 {[%clk 01:23:20]} {[%emt
00:00:14]} 11. g3 {[%clk 01:12:08]} {[%emt 00:15:13]} Bh3 {[%clk 01:21:32]}
{[%emt 00:02:18]} 12. Re1 {[%clk 01:11:59]} {[%emt 00:00:39]} Nd7 {[%clk
01:20:51]} {[%emt 00:01:10]} 13. Bf4 {[%clk 01:12:01]} {[%emt 00:00:28]} g5
{[%clk 01:14:41]} {[%emt 00:06:40]} 14. Bxd6 {[%clk 01:09:28]} {[%emt
00:03:03]} Qxd6 {[%clk 01:15:09]} {[%emt 00:00:03]} 15. Bf5 {[%clk 01:09:32]}
{[%emt 00:00:26]} Bxf5 {[%clk 01:15:17]} {[%emt 00:00:21]} 16. Qxf5 {[%clk
01:09:37]} {[%emt 00:00:25]} Qe6 {[%clk 01:15:10]} {[%emt 00:00:37]} 17. Qxe6
{[%clk 00:53:47]} {[%emt 00:16:21]} Rxe6 {[%clk 01:14:54]} {[%emt 00:00:45]} 18.
f4 {[%clk 00:51:02]} {[%emt 00:03:16]} Rae8 {[%clk 01:13:56]} {[%emt 00:01:28]}
19. Kf2 {[%clk 00:51:17]} {[%emt 00:00:14]} Nb6 {[%clk 01:11:48]} {[%emt
00:02:38]} 20. h4 {[%clk 00:40:52]} {[%emt 00:10:55]} Nc4 {[%clk 01:06:46]}
{[%emt 00:05:32]} 21. fxg5 {[%clk 00:40:01]} {[%emt 00:01:21]} fxg5 {[%clk
01:04:37]} {[%emt 00:02:40]} 22. hxg5 {[%clk 00:40:23]} {[%emt 00:00:09]} Ne3
{[%clk 00:51:13]} {[%emt 00:13:53]} 23. Nf4 {[%clk 00:40:37]} {[%emt 00:00:16]}
Ng4+ {[%clk 00:51:36]} {[%emt 00:00:07]} 24. Kf1 {[%clk 00:40:55]} {[%emt
00:00:11]} Nh2+ {[%clk 00:46:25]} {[%emt 00:05:41]} 25. Kf2 {[%clk 00:40:10]}
{[%emt 00:01:16]} Ng4+ {[%clk 00:46:01]} {[%emt 00:00:53]} 26. Kf1 {[%clk
00:40:06]} {[%emt 00:00:34]} Rxe1+ {[%clk 00:46:05]} {[%emt 00:00:26]} 27. Rxe1
{[%clk 00:40:21]} {[%emt 00:00:14]} Nh2+ {[%clk 00:46:32]} {[%emt 00:00:03]}
1/2-1/2

[Event "Kvibergspelen September 2019"]
[Site "Prioritet Serneke Arena, Krutvagen 2, Gothenburg, Sweden"]
[Date "2019.09.29"]
[Round "8.10"]
[White "Le, Quang Long"]
[Black "Ronneland, Daniel"]
[Result "1-0"]
[TimeControl "15 minutes + 5 seconds per move from move one (Round 1 - 4) / 90 minutes + 30 seconds per move from move one (Round 5 - 8)"]
[WhiteTitle "IM"]
[WhiteFideId "12401749"]
[BlackFideId "1702130"]
[WhiteElo "2415"]
[BlackElo "2137"]

1. c4 {[%clk 01:27:02]} {[%emt 00:03:58]} Nf6 {[%clk 01:30:39]} {[%emt
00:00:21]} 2. g3 {[%clk 01:26:31]} {[%emt 00:01:01]} g6 {[%clk 01:30:34]}
{[%emt 00:00:35]} 3. b3 {[%clk 01:26:18]} {[%emt 00:00:43]} Bg7 {[%clk
01:30:56]} {[%emt 00:00:07]} 4. Bb2 {[%clk 01:26:42]} {[%emt 00:00:07]} O-O
{[%clk 01:30:35]} {[%emt 00:00:51]} 5. Bg2 {[%clk 01:27:09]} {[%emt 00:00:03]}
d6 {[%clk 01:30:55]} {[%emt 00:00:09]} 6. Nf3 {[%clk 01:23:35]} {[%emt
00:04:05]} e5 {[%clk 01:28:52]} {[%emt 00:02:32]} 7. O-O {[%clk 01:20:20]}
{[%emt 00:03:46]} Nc6 {[%clk 01:28:31]} {[%emt 00:00:49]} 8. d3 {[%clk
01:18:38]} {[%emt 00:02:13]} Re8 {[%clk 01:20:13]} {[%emt 00:08:47]} 9. Nbd2
{[%clk 00:58:50]} {[%emt 00:20:19]} e4 {[%clk 01:17:48]} {[%emt 00:02:54]} 10.
dxe4 {[%clk 00:56:19]} {[%emt 00:03:02]} Nxe4 {[%clk 01:17:50]} {[%emt
00:00:28]} 11. Bxg7 {[%clk 00:56:38]} {[%emt 00:00:12]} Kxg7 {[%clk 01:18:14]}
{[%emt 00:00:04]} 12. Nxe4 {[%clk 00:56:11]} {[%emt 00:00:58]} Rxe4 {[%clk
01:17:58]} {[%emt 00:00:46]} 13. Nd2 {[%clk 00:52:59]} {[%emt 00:03:43]} Re8
{[%clk 01:17:15]} {[%emt 00:01:12]} 14. Ne4 {[%clk 00:53:21]} {[%emt 00:00:08]}
Bf5 {[%clk 01:11:01]} {[%emt 00:06:43]} 15. Nc3 {[%clk 00:52:26]} {[%emt
00:01:26]} Qd7 {[%clk 00:58:52]} {[%emt 00:12:39]} 16. Re1 {[%clk 00:40:03]}
{[%emt 00:12:54]} Rac8 {[%clk 00:55:40]} {[%emt 00:03:42]} 17. Qd2 {[%clk
00:39:10]} {[%emt 00:01:23]} Bh3 {[%clk 00:50:31]} {[%emt 00:05:37]} 18. Bh1
{[%clk 00:36:58]} {[%emt 00:02:44]} Qe6 {[%clk 00:43:33]} {[%emt 00:07:25]} 19.
Nd5 {[%clk 00:36:38]} {[%emt 00:00:53]} Qe5 {[%clk 00:40:43]} {[%emt 00:03:18]}
20. Rad1 {[%clk 00:36:42]} {[%emt 00:00:27]} Kg8 {[%clk 00:36:59]} {[%emt
00:04:14]} 21. e4 {[%clk 00:27:46]} {[%emt 00:09:27]} Qg7 {[%clk 00:34:18]}
{[%emt 00:03:10]} 22. Qf4 {[%clk 00:26:58]} {[%emt 00:01:18]} Kh8 {[%clk
00:20:54]} {[%emt 00:13:54]} 23. g4 {[%clk 00:19:34]} {[%emt 00:07:55]} f5
{[%clk 00:21:00]} {[%emt 00:00:23]} 24. g5 {[%clk 00:19:47]} {[%emt 00:00:17]}
fxe4 {[%clk 00:18:03]} {[%emt 00:03:27]} 25. Rxe4 {[%clk 00:20:07]} {[%emt
00:00:11]} Bf5 {[%clk 00:17:52]} {[%emt 00:00:40]} 26. Rxe8+ {[%clk 00:19:03]}
{[%emt 00:01:35]} Rxe8 {[%clk 00:18:17]} {[%emt 00:00:05]} 27. Nf6 {[%clk
00:19:30]} {[%emt 00:00:03]} Re7 {[%clk 00:13:45]} {[%emt 00:05:01]} 28. c5
{[%clk 00:18:29]} {[%emt 00:01:31]} Ne5 {[%clk 00:09:50]} {[%emt 00:04:24]} 29.
cxd6 {[%clk 00:17:44]} {[%emt 00:01:16]} cxd6 {[%clk 00:10:17]} {[%emt
00:00:03]} 30. Rxd6 {[%clk 00:17:48]} {[%emt 00:00:26]} Nd7 {[%clk 00:10:36]}
{[%emt 00:00:09]} 31. Qd4 {[%clk 00:14:30]} {[%emt 00:03:49]} Re6 {[%clk
00:06:06]} {[%emt 00:05:00]} 32. Bxb7 {[%clk 00:07:55]} {[%emt 00:07:06]} Re1+
{[%clk 00:01:22]} {[%emt 00:05:14]} 33. Kg2 {[%clk 00:08:23]} {[%emt 00:00:02]}
Nxf6 {[%clk 00:01:40]} {[%emt 00:00:12]} 34. Qxf6 {[%clk 00:08:37]} {[%emt
00:00:16]} Qxf6 {[%clk 00:01:33]} {[%emt 00:00:38]} 35. gxf6 {[%clk 00:09:01]}
{[%emt 00:00:05]} Re8 {[%clk 00:00:48]} {[%emt 00:01:15]} 36. Bd5 {[%clk
00:09:03]} {[%emt 00:00:29]} h5 {[%clk 00:00:42]} {[%emt 00:00:36]} 37. Ra6
{[%clk 00:08:53]} {[%emt 00:00:40]} Rf8 {[%clk 00:00:53]} {[%emt 00:00:18]} 38.
h4 {[%clk 00:08:00]} {[%emt 00:01:23]} Rd8 {[%clk 00:00:57]} {[%emt 00:00:27]}
39. Bc4 {[%clk 00:07:04]} {[%emt 00:01:26]} Rd7 {[%clk 00:01:17]} {[%emt
00:00:09]} 40. Kf3 {[%clk 00:07:01]} {[%emt 00:00:34]} Kh7 {[%clk 00:01:30]}
{[%emt 00:00:17]} 41. Kf4 {[%clk 00:07:11]} {[%emt 00:00:20]} Rd4+ {[%clk
00:01:34]} {[%emt 00:00:26]} 42. Ke5 {[%clk 00:07:12]} {[%emt 00:00:28]} 1-0

[Event "Kvibergspelen September 2019"]
[Site "Prioritet Serneke Arena, Krutvagen 2, Gothenburg, Sweden"]
[Date "2019.09.29"]
[Round "8.11"]
[White "Schandorff, Lars"]
[Black "Svensson, Mikael"]
[Result "1/2-1/2"]
[TimeControl "15 minutes + 5 seconds per move from move one (Round 1 - 4) / 90 minutes + 30 seconds per move from move one (Round 5 - 8)"]
[WhiteTitle "GM"]
[WhiteFideId "1400070"]
[BlackFideId "1716433"]
[WhiteElo "2496"]
[BlackElo "2163"]

1. Nf3 {[%clk 01:30:56]} {[%emt 00:00:02]} e6 {[%clk 01:30:04]} {[%emt
00:00:58]} 2. c4 {[%clk 01:31:09]} {[%emt 00:00:16]} f5 {[%clk 01:30:19]}
{[%emt 00:00:16]} 3. g3 {[%clk 01:31:30]} {[%emt 00:00:09]} Nf6 {[%clk
01:30:38]} {[%emt 00:00:11]} 4. Bg2 {[%clk 01:31:55]} {[%emt 00:00:04]} g6
{[%clk 01:30:44]} {[%emt 00:00:25]} 5. O-O {[%clk 01:31:14]} {[%emt 00:01:11]}
Bg7 {[%clk 01:31:08]} {[%emt 00:00:07]} 6. d4 {[%clk 01:31:20]} {[%emt
00:00:23]} O-O {[%clk 01:31:31]} {[%emt 00:00:07]} 7. Nc3 {[%clk 01:31:08]}
{[%emt 00:00:43]} d6 {[%clk 01:31:55]} {[%emt 00:00:07]} 8. Qc2 {[%clk
01:28:05]} {[%emt 00:03:32]} Nc6 {[%clk 01:32:12]} {[%emt 00:00:13]} 9. d5
{[%clk 01:26:19]} {[%emt 00:02:17]} Nb4 {[%clk 01:32:35]} {[%emt 00:00:07]} 10.
Qd1 {[%clk 01:23:51]} {[%emt 00:02:58]} e5 {[%clk 01:32:46]} {[%emt 00:00:19]}
11. a3 {[%clk 01:23:59]} {[%emt 00:00:22]} Na6 {[%clk 01:33:10]} {[%emt
00:00:06]} 12. b4 {[%clk 01:24:25]} {[%emt 00:00:05]} Qe7 {[%clk 01:28:03]}
{[%emt 00:05:37]} 13. e4 {[%clk 01:23:02]} {[%emt 00:01:52]} f4 {[%clk
01:10:46]} {[%emt 00:17:48]} 14. h3 {[%clk 01:21:08]} {[%emt 00:02:24]} h6
{[%clk 01:02:14]} {[%emt 00:09:02]} 15. g4 {[%clk 00:59:30]} {[%emt 00:22:07]}
Nh7 {[%clk 01:01:32]} {[%emt 00:01:12]} 16. Nh2 {[%clk 00:53:42]} {[%emt
00:06:17]} Qh4 {[%clk 00:58:03]} {[%emt 00:03:59]} 17. Nf3 {[%clk 00:53:37]}
{[%emt 00:00:35]} Qe7 {[%clk 00:58:23]} {[%emt 00:00:10]} 18. Nh2 {[%clk
00:53:43]} {[%emt 00:00:24]} Qh4 {[%clk 00:58:47]} {[%emt 00:00:06]} 19. Nf3
{[%clk 00:54:06]} {[%emt 00:00:06]} Qe7 {[%emt 00:00:23]} 1/2-1/2